fUSD/lending_fUSD_20240412
["ID","MTS","AMOUNT","RATE_DAILY","PERIOD"]
[322240629,1712910648953,-500.0,0.00027671,2]
[322240630,1712910648966,-500.0,0.00027671,2]
[322240631,1712910648978,-500.0,0.00027671,2]
[322240632,1712910648990,-500.0,0.00027671,2]
[322240633,1712910649007,-500.0,0.00027671,2]
[322240634,1712910649019,-1518.69,0.00027671,2]
[322240635,1712910649030,-500.0,0.00027671,2]
[322240636,1712910649041,-500.0,0.00027671,2]
[322240637,1712910649052,-1734.28,0.00027671,2]
[322240638,1712910649067,-1888.52,0.00027671,2]
[322240639,1712910649081,-500.0,0.00027671,2]
[322240640,1712910649094,-500.0,0.00027671,2]
[322240641,1712910649110,-500.0,0.00027671,2]
[322240642,1712910649122,-500.0,0.00027671,2]
[322240643,1712910649135,-845.6,0.00027671,2]
[322240644,1712910649147,-500.0,0.00027671,2]
[322240645,1712910649160,-1147.94,0.00027671,2]
[322240646,1712910649172,-500.0,0.00027671,2]
[322240647,1712910649183,-968.6,0.00027671,2]
[322240648,1712910649197,-500.0,0.00027671,2]
[322240649,1712910649211,-500.0,0.00027671,2]
[322240650,1712910649225,-901.52,0.00027671,2]
[322240651,1712910649242,-500.0,0.00027671,2]
[322240652,1712910649254,-500.0,0.00027671,2]
[322240653,1712910649268,-5229.28,0.00027671,2]
[322240654,1712910649280,-500.0,0.00027671,2]
[322240655,1712910649290,-500.0,0.00027671,2]
[322240656,1712910649300,-1792.89,0.00027671,2]
[322240657,1712910649311,-500.0,0.00027671,2]
[322240658,1712910649322,-158.75,0.00027671,2]
[322240659,1712910649333,-763.08,0.00027671,2]
[322240660,1712910649345,-715.29,0.00027671,2]
[322240661,1712910649356,-500.0,0.00027671,2]
[322240662,1712910649367,-742.43,0.00027671,2]
[322240663,1712910649380,-676.83,0.00027671,2]
[322240664,1712910649393,-500.0,0.00027671,2]
[322240665,1712910649405,-500.0,0.00027671,2]
[322240666,1712910649415,-1122.17,0.00027671,2]
[322240667,1712910649426,-775.54,0.00027671,2]
[322240668,1712910649439,-500.0,0.00027671,2]
[322240669,1712910649449,-500.0,0.00027671,2]
[322240670,1712910649460,-1457.02,0.00027671,2]
[322240671,1712910649470,-239.76305287,0.00027671,2]
[322240672,1712910649482,-927.26,0.00027671,2]
[322240673,1712910649495,-352.88880083,0.00027671,2]
[322240674,1712910649509,-672.74,0.00027671,2]
[322240675,1712910649522,-500.0,0.00027671,2]
[322240676,1712910649534,-474.83,0.00027671,2]
[322240677,1712910649549,-2171.71,0.00027671,2]
[322240678,1712910649562,-1750.71,0.00027671,2]
[322240679,1712910649573,-4894.56,0.00027671,2]
[322240680,1712910649584,-500.0,0.00027671,2]
[322240681,1712910649596,-1617.03,0.00027671,2]
[322240682,1712910649607,-2386.31,0.00027671,2]
[322240683,1712910649619,-869.45,0.00027671,2]
[322240684,1712910649631,-1606.73,0.00027671,2]
[322240685,1712910649644,-2232.46,0.00027671,2]
[322240686,1712910649655,-500.0,0.00027671,2]
[322240687,1712910649667,-1566.09,0.00027671,2]
[322240688,1712910649678,-1551.51,0.00027671,2]
[322240689,1712910649690,-500.0,0.00027671,2]
[322240690,1712910649701,-500.0,0.00027671,2]
[322240691,1712910649711,-1349.22,0.00027671,2]
[322240692,1712910649723,-904.67,0.00027671,2]
[322240693,1712910649734,-500.0,0.00027671,2]
[322240694,1712910649746,-758.58,0.00027671,2]
[322240695,1712910649756,-790.55,0.00027671,2]
[322240696,1712910649770,-1078.88,0.00027671,2]
[322240697,1712910649780,-500.0,0.00027671,2]
[322240698,1712910649791,-2788.66,0.00027671,2]
[322240699,1712910649802,-514.13180561,0.00027671,2]
[322240700,1712910649813,-500.0,0.00027671,2]
[322240701,1712910649824,-500.0,0.00027671,2]
[322240702,1712910649835,-500.0,0.00027671,2]
[322240703,1712910649846,-1484.06,0.00027671,2]
[322240704,1712910649861,-519.46094095,0.00027671,2]
[322240705,1712910649872,-6871.46,0.00027671,2]
[322240706,1712910649883,-1564.17,0.00027671,2]
[322240707,1712910649895,-156.64160943,0.00027704,2]
[322240708,1712910649906,-1178.92674415,0.0002772,2]
[322240709,1712910649919,-155.7833029,0.00027788,2]
[322240710,1712910649931,-155.6033092,0.00027845,2]
[322240711,1712910649943,-157.59573881,0.00027892,2]
[322240712,1712910649954,-162.94543171,0.000279,2]
[322240713,1712910649965,-500.0,0.00027944,2]
[322240714,1712910649975,-500.0,0.00027944,2]
[322240715,1712910649987,-500.0,0.00027944,2]
[322240716,1712910649999,-500.0,0.00027945,2]
[322240717,1712910650010,-500.0,0.00027945,2]
[322240718,1712910650034,-500.0,0.00027945,2]
[322240719,1712910650050,-500.0,0.00027945,2]
[322240720,1712910650064,-500.0,0.00027945,2]
[322240721,1712910650076,-500.0,0.00027945,2]
[322240722,1712910650088,-500.0,0.00027945,2]
[322240723,1712910650100,-500.0,0.00027945,2]
[322240724,1712910650114,-500.0,0.00027945,2]
[322240725,1712910650126,-500.0,0.00027945,2]
[322240726,1712910650139,-500.0,0.00027945,2]
[322240727,1712910650151,-756.63,0.00027945,2]
[322240728,1712910650163,-500.0,0.00027945,2]
[322240729,1712910650175,-397.32110415,0.00027945,2]
[322240730,1712910650186,-500.0,0.00027945,2]
[322240731,1712910650198,-500.0,0.00027945,2]
[322240732,1712910650209,-500.0,0.00027945,2]
[322240733,1712910650224,-500.0,0.00027945,2]
[322240734,1712910650239,-184.81290922,0.00027945,2]
[322240735,1712910650250,-500.0,0.00027945,2]
[322240736,1712910650265,-500.0,0.00027945,2]
[322240737,1712910650276,-500.0,0.00027945,2]
[322240738,1712910650287,-500.0,0.00027945,2]
[322240739,1712910650299,-500.0,0.00027945,2]
[322240740,1712910650310,-500.0,0.00027945,2]
[322240741,1712910650321,-150.0,0.00027945,2]
[322240742,1712910650332,-500.0,0.00027945,2]
[322240743,1712910650343,-500.0,0.00027945,2]
[322240744,1712910650354,-500.0,0.00027945,2]
[322240745,1712910650366,-500.0,0.00027945,2]
[322240746,1712910650377,-500.0,0.00027945,2]
[322240747,1712910650388,-500.0,0.00027945,2]
[322240748,1712910650399,-500.0,0.00027945,2]
[322240749,1712910650411,-500.0,0.00027945,2]
[322240750,1712910650423,-500.0,0.00027945,2]
[322240751,1712910650435,-523.99,0.00027945,2]
[322240752,1712910650446,-500.0,0.00027945,2]
[322240753,1712910650457,-500.0,0.00027945,2]
[322240754,1712910650468,-483.98,0.00027945,2]
[322240755,1712910650479,-869.58,0.00027945,2]
[322240756,1712910650491,-385.64,0.00027945,2]
[322240757,1712910650502,-500.0,0.00027945,2]
[322240758,1712910650514,-165.30267144,0.00027945,2]
[322240759,1712910650525,-500.0,0.00027945,2]
[322240760,1712910650536,-509.23,0.00027945,2]
[322240761,1712910650548,-503.47,0.00027945,2]
[322240762,1712910650559,-500.0,0.00027945,2]
[322240763,1712910650569,-500.0,0.00027945,2]
[322240764,1712910650578,-500.0,0.00027945,2]
[322240765,1712910650587,-500.0,0.00027945,2]
[322240766,1712910650596,-500.0,0.00027945,2]
[322240767,1712910650606,-500.0,0.00027945,2]
[322240768,1712910650615,-500.0,0.00027945,2]
[322240769,1712910650624,-500.0,0.00027945,2]
[322240770,1712910650633,-500.0,0.00027945,2]
[322240771,1712910650642,-500.0,0.00027945,2]
[322240772,1712910650652,-500.0,0.00027945,2]
[322240773,1712910650662,-500.0,0.00027945,2]
[322240774,1712910650671,-500.0,0.00027945,2]
[322240775,1712910650681,-500.0,0.00027945,2]
[322240776,1712910650694,-500.0,0.00027945,2]
[322240777,1712910650703,-1051.09,0.00027945,2]
[322240778,1712910650713,-581.78,0.00027945,2]
[322240779,1712910650723,-955.26,0.00027945,2]
[322240780,1712910650732,-1086.38,0.00027945,2]
[322240781,1712910650742,-326.28306914,0.00027945,2]
[322240782,1712910650752,-500.0,0.00027945,2]
[322240783,1712910650761,-1440.94,0.00027945,2]
[322240784,1712910650771,-500.0,0.00027945,2]
[322240785,1712910650781,-500.0,0.00027945,2]
[322240786,1712910650790,-15881.78,0.00027945,2]
[322240787,1712910650800,-500.0,0.00027945,2]
[322240788,1712910650810,-500.0,0.00027945,2]
[322240789,1712910650820,-2268.83,0.00027945,2]
[322240790,1712910650830,-1118.92,0.00027945,2]
[322240791,1712910650840,-500.0,0.00027945,2]
[322240792,1712910650850,-500.0,0.00027945,2]
[322240793,1712910650863,-635.62,0.00027945,2]
[322240794,1712910650872,-500.0,0.00027945,2]
[322240795,1712910650882,-158.29048384,0.00027945,2]
[322240796,1712910650892,-500.0,0.00027945,2]
[322240797,1712910650902,-1073.25,0.00027945,2]
[322240798,1712910650912,-670.16,0.00027945,2]
[322240799,1712910651257,-628.69,0.00027945,2]
[322240800,1712910651276,-888.45,0.00027945,2]
[322240801,1712910651288,-1644.72,0.00027945,2]
[322240802,1712910651298,-2054.82,0.00027945,2]
[322240803,1712910651307,-794.28,0.00027945,2]
[322240804,1712910651317,-500.0,0.00027945,2]
[322240805,1712910651328,-504.05,0.00027945,2]
[322240806,1712910651337,-2423.68,0.00027945,2]
[322240807,1712910651347,-5075.03,0.00027945,2]
[322240808,1712910651356,-500.0,0.00027945,2]
[322240809,1712910651365,-500.0,0.00027945,2]
[322240810,1712910651375,-500.0,0.00027945,2]
[322240811,1712910651384,-500.0,0.00027945,2]
[322240812,1712910651393,-769.18,0.00027945,2]
[322240813,1712910651403,-500.0,0.00027945,2]
[322240814,1712910651412,-1718.02,0.00027945,2]
[322240815,1712910651421,-500.0,0.00027945,2]
[322240816,1712910651431,-500.0,0.00027945,2]
[322240817,1712910651440,-707.32,0.00027945,2]
[322240818,1712910651450,-500.0,0.00027945,2]
[322240819,1712910651459,-500.0,0.00027945,2]
[322240820,1712910651468,-511.65,0.00027945,2]
[322240821,1712910651477,-500.0,0.00027945,2]
[322240822,1712910651489,-1023.69,0.00027945,2]
[322240823,1712910651498,-217.81,0.00027945,2]
[322240824,1712910651507,-500.0,0.00027945,2]
[322240825,1712910651517,-500.0,0.00027945,2]
[322240826,1712910651526,-1513.61,0.00027945,2]
[322240827,1712910651536,-500.0,0.00027945,2]
[322240828,1712910651545,-500.0,0.00027945,2]
[322240829,1712910651554,-661.27,0.00027945,2]
[322240830,1712910651564,-500.0,0.00027945,2]
[322240831,1712910651574,-500.0,0.00027945,2]
[322240832,1712910651583,-500.0,0.00027945,2]
[322240833,1712910651592,-500.0,0.00027945,2]
[322240834,1712910651602,-500.0,0.00027945,2]
[322240835,1712910651612,-1518.69,0.00027945,2]
[322240836,1712910651621,-500.0,0.00027945,2]
[322240837,1712910651630,-500.0,0.00027945,2]
[322240838,1712910651640,-1734.28,0.00027945,2]
[322240839,1712910651649,-1888.52,0.00027945,2]
[322240840,1712910651658,-500.0,0.00027945,2]
[322240841,1712910651668,-500.0,0.00027945,2]
[322240842,1712910651677,-500.0,0.00027945,2]
[322240843,1712910651686,-845.6,0.00027945,2]
[322240844,1712910651695,-500.0,0.00027945,2]
[322240845,1712910651705,-1147.94,0.00027945,2]
[322240846,1712910651714,-500.0,0.00027945,2]
[322240847,1712910651724,-968.6,0.00027945,2]
[322240848,1712910651733,-500.0,0.00027945,2]
[322240849,1712910651743,-500.0,0.00027945,2]
[322240850,1712910651752,-901.52,0.00027945,2]
[322240851,1712910651761,-500.0,0.00027945,2]
[322240852,1712910651771,-500.0,0.00027945,2]
[322240853,1712910651781,-5229.28,0.00027945,2]
[322240854,1712910651790,-500.0,0.00027945,2]
[322240855,1712910651799,-500.0,0.00027945,2]
[322240856,1712910651808,-1792.89,0.00027945,2]
[322240857,1712910651818,-500.0,0.00027945,2]
[322240858,1712910651827,-763.08,0.00027945,2]
[322240859,1712910651837,-715.29,0.00027945,2]
[322240860,1712910651846,-152.23,0.00027945,2]
[322240861,1712910651858,-742.43,0.00027945,2]
[322240862,1712910651868,-676.83,0.00027945,2]
[322240863,1712910651878,-500.0,0.00027945,2]
[322240864,1712910651887,-1122.17,0.00027945,2]
[322240865,1712910651898,-775.54,0.00027945,2]
[322240866,1712910651908,-500.0,0.00027945,2]
[322240867,1712910651918,-500.0,0.00027945,2]
[322240868,1712910651928,-1457.02,0.00027945,2]
[322240869,1712910651937,-927.26,0.00027945,2]
[322240870,1712910651948,-672.74,0.00027945,2]
[322240871,1712910651957,-500.0,0.00027945,2]
[322240872,1712910651967,-2171.71,0.00027945,2]
[322240873,1712910651977,-1750.71,0.00027945,2]
[322240874,1712910651986,-4894.56,0.00027945,2]
[322240875,1712910651997,-1617.03,0.00027945,2]
[322240876,1712910652007,-2386.31,0.00027945,2]
[322240877,1712910652016,-869.45,0.00027945,2]
[322240878,1712910652025,-1606.73,0.00027945,2]
[322240879,1712910652035,-2232.46,0.00027945,2]
[322240880,1712910652044,-500.0,0.00027945,2]
[322240881,1712910652053,-1566.09,0.00027945,2]
[322240882,1712910652063,-1551.51,0.00027945,2]
[322240883,1712910652072,-500.0,0.00027945,2]
[322240884,1712910652082,-1349.22,0.00027945,2]
[322240885,1712910652092,-904.67,0.00027945,2]
[322240886,1712910652102,-500.0,0.00027945,2]
[322240887,1712910652111,-758.58,0.00027945,2]
[322240888,1712910652121,-790.55,0.00027945,2]
[322240889,1712910652131,-1078.88,0.00027945,2]
[322240890,1712910652140,-500.0,0.00027945,2]
[322240891,1712910652150,-2788.66,0.00027945,2]
[322240892,1712910652159,-346.11678931,0.00027945,2]
[322240893,1712910652169,-500.0,0.00027945,2]
[322240894,1712910652186,-500.0,0.00027945,2]
[322240895,1712910652200,-1484.06,0.00027945,2]
[322240896,1712910652209,-6871.46,0.00027945,2]
[322240897,1712910652218,-1564.17,0.00027945,2]
[322240898,1712910652228,-153.82382248,0.00027992,2]
[322240899,1712910652237,-500.0,0.00027999,2]
[322240900,1712910652246,-20180.30698704,0.00028,2]
[322240901,1712910652256,-155.7833029,0.00028026,2]
[322240902,1712910652265,-168.79040145,0.00028064,3]
[322240903,1712910652274,-157.59573881,0.00028069,2]
[322240904,1712910652284,-154.09758038,0.00028071,2]
[322240905,1712910652293,-200.0,0.00028079,7]
[322240906,1712910652304,-1000.0,0.00028126,10]
[322240907,1712910652314,-500.0,0.00028126,2]
[322240908,1712910652325,-200.0,0.00028126,2]
[322240909,1712910652336,-500.0,0.00028218,2]
[322240910,1712910652345,-500.0,0.00028218,2]
[322240911,1712910652355,-500.0,0.00028218,2]
[322240912,1712910652365,-500.0,0.00028218,2]
[322240913,1712910652376,-500.0,0.00028218,2]
[322240914,1712910652387,-358.0,0.00028219,5]
[322240915,1712910652397,-500.0,0.00028219,2]
[322240916,1712910652407,-500.0,0.00028219,2]
[322240917,1712910652417,-500.0,0.00028219,2]
[322240918,1712910652427,-500.0,0.00028219,2]
[322240919,1712910652436,-500.0,0.00028219,2]
[322240920,1712910652445,-500.0,0.00028219,2]
[322240921,1712910652454,-500.0,0.00028219,2]
[322240922,1712910652464,-500.0,0.00028219,2]
[322240923,1712910652475,-500.0,0.00028219,2]
[322240924,1712910652486,-500.0,0.00028219,2]
[322240925,1712910652496,-500.0,0.00028219,2]
[322240926,1712910652506,-756.63,0.00028219,2]
[322240927,1712910652515,-151.0,0.00028219,7]
[322240928,1712910652525,-500.0,0.00028219,2]
[322240929,1712910652535,-151.0,0.00028219,7]
[322240930,1712910652545,-466.40416262,0.00028219,2]
[322240931,1712910652555,-500.0,0.00028219,2]
[322240932,1712910652564,-500.0,0.00028219,2]
[322240933,1712910652575,-500.0,0.00028219,2]
[322240934,1712910652585,-500.0,0.00028219,2]
[322240935,1712910652594,-500.0,0.00028219,2]
[322240936,1712910652604,-500.0,0.00028219,2]
[322240937,1712910652613,-500.0,0.00028219,2]
[322240938,1712910652623,-500.0,0.00028219,2]
[322240939,1712910652635,-585.10378584,0.00028219,2]
[322240940,1712910652646,-150.0,0.00028219,2]
[322240941,1712910652656,-500.0,0.00028219,2]
[322240942,1712910652665,-500.0,0.00028219,2]
[322240943,1712910652675,-500.0,0.00028219,2]
[322240944,1712910652686,-500.0,0.00028219,2]
[322240945,1712910652695,-500.0,0.00028219,2]
[322240946,1712910652704,-500.0,0.00028219,2]
[322240947,1712910652713,-500.0,0.00028219,2]
[322240948,1712910652723,-500.0,0.00028219,2]
[322240949,1712910652732,-500.0,0.00028219,2]
[322240950,1712910652742,-500.0,0.00028219,2]
[322240951,1712910652753,-869.58,0.00028219,2]
[322240952,1712910652762,-500.0,0.00028219,2]
[322240953,1712910652774,-296.082221,0.00028219,2]
[322240954,1712910652784,-509.23,0.00028219,2]
[322240955,1712910652793,-503.47,0.00028219,2]
[322240956,1712910652804,-500.0,0.00028219,2]
[322240957,1712910652813,-500.0,0.00028219,2]
[322240958,1712910652822,-277.4,0.00028219,2]
[322240959,1712910652833,-500.0,0.00028219,2]
[322240960,1712910652843,-500.0,0.00028219,2]
[322240961,1712910652853,-513.55120462,0.00028219,2]
[322240962,1712910652863,-500.0,0.00028219,2]
[322240963,1712910652874,-500.0,0.00028219,2]
[322240964,1712910652884,-500.0,0.00028219,2]
[322240965,1712910652894,-500.0,0.00028219,2]
[322240966,1712910652905,-500.0,0.00028219,2]
[322240967,1712910652914,-500.0,0.00028219,2]
[322240968,1712910652923,-500.0,0.00028219,2]
[322240969,1712910652934,-500.0,0.00028219,2]
[322240970,1712910652945,-500.0,0.00028219,2]
[322240971,1712910652954,-1051.09,0.00028219,2]
[322240972,1712910652963,-581.78,0.00028219,2]
[322240973,1712910652973,-955.26,0.00028219,2]
[322240974,1712910652982,-1086.38,0.00028219,2]
[322240975,1712910652992,-500.0,0.00028219,2]
[322240976,1712910653001,-1440.94,0.00028219,2]
[322240977,1712910653010,-500.0,0.00028219,2]
[322240978,1712910653020,-500.0,0.00028219,2]
[322240979,1712910653029,-15881.78,0.00028219,2]
[322240980,1712910653039,-500.0,0.00028219,2]
[322240981,1712910653048,-500.0,0.00028219,2]
[322240982,1712910653058,-2268.83,0.00028219,2]
[322240983,1712910653067,-1118.92,0.00028219,2]
[322240984,1712910653077,-500.0,0.00028219,2]
[322240985,1712910653087,-500.0,0.00028219,2]
[322240986,1712910653097,-635.62,0.00028219,2]
[322240987,1712910653106,-500.0,0.00028219,2]
[322240988,1712910653116,-500.0,0.00028219,2]
[322240989,1712910653126,-1073.25,0.00028219,2]
[322240990,1712910653136,-670.16,0.00028219,2]
[322240991,1712910653145,-628.69,0.00028219,2]
[322240992,1712910653154,-888.45,0.00028219,2]
[322240993,1712910653164,-1644.72,0.00028219,2]
[322240994,1712910653174,-2054.82,0.00028219,2]
[322240995,1712910653184,-794.28,0.00028219,2]
[322240996,1712910653195,-500.0,0.00028219,2]
[322240997,1712910653204,-504.05,0.00028219,2]
[322240998,1712910653213,-2423.68,0.00028219,2]
[322240999,1712910653222,-5075.03,0.00028219,2]
[322241000,1712910653232,-500.0,0.00028219,2]
[322241001,1712910653241,-500.0,0.00028219,2]
[322241002,1712910653250,-500.0,0.00028219,2]
[322241003,1712910653259,-769.18,0.00028219,2]
[322241004,1712910653269,-500.0,0.00028219,2]
[322241005,1712910653279,-1718.02,0.00028219,2]
[322241006,1712910653288,-500.0,0.00028219,2]
[322241007,1712910653298,-500.0,0.00028219,2]
[322241008,1712910653308,-707.32,0.00028219,2]
[322241009,1712910653318,-500.0,0.00028219,2]
[322241010,1712910653329,-500.0,0.00028219,2]
[322241011,1712910653339,-511.65,0.00028219,2]
[322241012,1712910653348,-500.0,0.00028219,2]
[322241013,1712910653358,-1023.69,0.00028219,2]
[322241014,1712910653368,-500.0,0.00028219,2]
[322241015,1712910653378,-500.0,0.00028219,2]
[322241016,1712910653389,-1513.61,0.00028219,2]
[322241017,1712910653398,-500.0,0.00028219,2]
[322241018,1712910653407,-500.0,0.00028219,2]
[322241019,1712910653419,-151.0,0.00028219,7]
[322241020,1712910653429,-661.27,0.00028219,2]
[322241021,1712910653439,-500.0,0.00028219,2]
[322241022,1712910653448,-500.0,0.00028219,2]
[322241023,1712910653458,-500.0,0.00028219,2]
[322241024,1712910653468,-500.0,0.00028219,2]
[322241025,1712910653477,-386.59851471,0.00028219,2]
[322241026,1712910653487,-1518.69,0.00028219,2]
[322241027,1712910653498,-500.0,0.00028219,2]
[322241028,1712910653508,-500.0,0.00028219,2]
[322241029,1712910653517,-1734.28,0.00028219,2]
[322241030,1712910653527,-1888.52,0.00028219,2]
[322241031,1712910653537,-500.0,0.00028219,2]
[322241032,1712910653547,-500.0,0.00028219,2]
[322241033,1712910653558,-845.6,0.00028219,2]
[322241034,1712910653569,-500.0,0.00028219,2]
[322241035,1712910653578,-1147.94,0.00028219,2]
[322241036,1712910653588,-500.0,0.00028219,2]
[322241037,1712910653597,-968.6,0.00028219,2]
[322241038,1712910653608,-500.0,0.00028219,2]
[322241039,1712910653618,-500.0,0.00028219,2]
[322241040,1712910653628,-901.52,0.00028219,2]
[322241041,1712910653638,-500.0,0.00028219,2]
[322241042,1712910653648,-5229.28,0.00028219,2]
[322241043,1712910653658,-500.0,0.00028219,2]
[322241044,1712910653667,-500.0,0.00028219,2]
[322241045,1712910653677,-1792.89,0.00028219,2]
[322241046,1712910653687,-500.0,0.00028219,2]
[322241047,1712910653696,-763.08,0.00028219,2]
[322241048,1712910653706,-715.29,0.00028219,2]
[322241049,1712910653715,-742.43,0.00028219,2]
[322241050,1712910653725,-676.83,0.00028219,2]
[322241051,1712910653735,-500.0,0.00028219,2]
[322241052,1712910653744,-1122.17,0.00028219,2]
[322241053,1712910653754,-775.54,0.00028219,2]
[322241054,1712910653764,-500.0,0.00028219,2]
[322241055,1712910653774,-500.0,0.00028219,2]
[322241056,1712910653784,-1457.02,0.00028219,2]
[322241057,1712910653793,-927.26,0.00028219,2]
[322241058,1712910653804,-672.74,0.00028219,2]
[322241059,1712910653814,-602.95785482,0.00028219,2]
[322241060,1712910653823,-2171.71,0.00028219,2]
[322241061,1712910653834,-1750.71,0.00028219,2]
[322241062,1712910653845,-4894.56,0.00028219,2]
[322241063,1712910653857,-1617.03,0.00028219,2]
[322241064,1712910653867,-2386.31,0.00028219,2]
[322241065,1712910653876,-869.45,0.00028219,2]
[322241066,1712910653886,-1606.73,0.00028219,2]
[322241067,1712910653897,-2232.46,0.00028219,2]
[322241068,1712910653907,-500.0,0.00028219,2]
[322241069,1712910653917,-1566.09,0.00028219,2]
[322241070,1712910653927,-1551.51,0.00028219,2]
[322241071,1712910653939,-500.0,0.00028219,2]
[322241072,1712910653950,-904.67,0.00028219,2]
[322241073,1712910653960,-1349.22,0.00028219,2]
[322241074,1712910653970,-500.0,0.00028219,2]
[322241075,1712910653982,-758.58,0.00028219,2]
[322241076,1712910653992,-790.55,0.00028219,2]
[322241077,1712910654002,-1078.88,0.00028219,2]
[322241078,1712910654011,-500.0,0.00028219,2]
[322241079,1712910654021,-2788.66,0.00028219,2]
[322241080,1712910654031,-500.0,0.00028219,2]
[322241081,1712910654040,-500.0,0.00028219,2]
[322241082,1712910654050,-1484.06,0.00028219,2]
[322241083,1712910654060,-6871.46,0.00028219,2]
[322241084,1712910654070,-1564.17,0.00028219,2]
[322241085,1712910654080,-1178.92674415,0.00028242,2]
[322241086,1712910654090,-152.40306159,0.00028249,2]
[322241087,1712910654100,-867.745039,0.00028264,10]
[322241088,1712910654110,-500.0,0.00028264,2]
[322241089,1712910654119,-153.82382248,0.00028294,2]
[322241090,1712910654129,-153.82382248,0.00028388,2]
[322241091,1712910654139,-152.06887318,0.00028401,2]
[322241092,1712910654148,-154.20406455,0.00028421,2]
[322241093,1712910654161,-152.06887318,0.0002847,2]
[322241094,1712910654172,-158.27358246,0.00028484,2]
[322241095,1712910654181,-22973.5375018,0.00028491,2]
[322241096,1712910654190,-43130.7518279,0.00028491,2]
[322241097,1712910654201,-7874.8399815,0.00028491,2]
[322241098,1712910654211,-2625.66328841,0.00028492,2]
[322241099,1712910654221,-500.0,0.00028492,2]
[322241100,1712910654232,-500.0,0.00028492,2]
[322241101,1712910654243,-2000.0,0.00028493,2]
[322241102,1712910654254,-200.0,0.00028493,2]
[322241103,1712910654263,-500.0,0.00028493,2]
[322241104,1712910654272,-500.0,0.00028493,2]
[322241105,1712910654282,-500.0,0.00028493,2]
[322241106,1712910654293,-500.0,0.00028493,2]
[322241107,1712910654304,-500.0,0.00028493,2]
[322241108,1712910654313,-500.0,0.00028493,2]
[322241109,1712910654325,-500.0,0.00028493,2]
[322241110,1712910654336,-581.51468428,0.00028493,2]
[322241111,1712910654346,-500.0,0.00028493,2]
[322241112,1712910654356,-500.0,0.00028493,2]
[322241113,1712910654365,-500.0,0.00028493,2]
[322241114,1712910654374,-756.63,0.00028493,2]
[322241115,1712910654385,-500.0,0.00028493,2]
[322241116,1712910654394,-500.0,0.00028493,2]
[322241117,1712910654404,-500.0,0.00028493,2]
[322241118,1712910654415,-466.07764849,0.00028493,2]
[322241119,1712910654426,-500.0,0.00028493,2]
[322241120,1712910654435,-500.0,0.00028493,2]
[322241121,1712910654444,-500.0,0.00028493,2]
[322241122,1712910654454,-500.0,0.00028493,2]
[322241123,1712910654606,-500.0,0.00028493,2]
[322241124,1712910654617,-150.0,0.00028493,2]
[322241125,1712910654628,-416.53517702,0.00028493,2]
[322241126,1712910654638,-500.0,0.00028493,2]
[322241127,1712910654649,-500.0,0.00028493,2]
[322241128,1712910654658,-500.0,0.00028493,2]